[Event "*** Titled Tuesday Blitz"]
[Site "Chess.com"]
[Date "2020.05.05"]
[Round "1"]
[White "Tsukasa06"]
[Black "saikrishnaReturns"]
[Result "0-1"]
[WhiteElo "2263"]
[BlackElo "2593"]
[TimeControl "180+1"]
[EndTime "10:08:07 PDT"]
[Termination "saikrishnaReturns won on time"]

1. e4 {[%clk 0:03:00.4]} 1... e5 {[%clk 0:02:59.6]} 2. Nf3 {[%clk 0:02:59.7]}
2... Nc6 {[%clk 0:02:59.8]} 3. Bc4 {[%clk 0:02:58.6]} 3... Nf6 {[%clk
0:02:59.4]} 4. d3 {[%clk 0:02:58]} 4... h6 {[%clk 0:02:59.6]} 5. c3 {[%clk
0:02:57.4]} 5... d6 {[%clk 0:02:59.7]} 6. Nbd2 {[%clk 0:02:55.3]} 6... g6 {[%clk
0:02:59.2]} 7. Nf1 {[%clk 0:02:54.6]} 7... Bg7 {[%clk 0:02:59.5]} 8. Ne3 {[%clk
0:02:54.5]} 8... O-O {[%clk 0:02:58.4]} 9. O-O {[%clk 0:02:53.6]} 9... Ne7
{[%clk 0:02:53.8]} 10. Re1 {[%clk 0:02:47.4]} 10... c6 {[%clk 0:02:53.7]} 11.
Bb3 {[%clk 0:02:46]} 11... Qc7 {[%clk 0:02:53.3]} 12. a4 {[%clk 0:02:38]} 12...
a5 {[%clk 0:02:51.7]} 13. Bc2 {[%clk 0:02:29.1]} 13... Rd8 {[%clk 0:02:44.5]}
14. Qe2 {[%clk 0:02:25.8]} 14... d5 {[%clk 0:02:24.7]} 15. exd5 {[%clk
0:02:21.5]} 15... cxd5 {[%clk 0:02:25.6]} 16. d4 {[%clk 0:02:16.7]} 16... e4
{[%clk 0:02:22.4]} 17. Ne5 {[%clk 0:02:15.7]} 17... Nc6 {[%clk 0:02:22.5]} 18.
f4 {[%clk 0:02:08.5]} 18... exf3 {[%clk 0:02:05.9]} 19. Nxf3 {[%clk 0:01:56.8]}
19... Ng4 {[%clk 0:02:04.6]} 20. h3 {[%clk 0:01:51.6]} 20... Nxe3 {[%clk
0:02:02.9]} 21. Bxe3 {[%clk 0:01:51.2]} 21... Bd7 {[%clk 0:02:03.1]} 22. Qd2
{[%clk 0:01:51]} 22... Kh7 {[%clk 0:01:59.9]} 23. Bf4 {[%clk 0:01:50.4]} 23...
Qb6 {[%clk 0:01:58.7]} 24. Rab1 {[%clk 0:01:42.9]} 24... Re8 {[%clk 0:01:57.9]}
25. Bd3 {[%clk 0:01:32.4]} 25... Ne7 {[%clk 0:01:53.3]} 26. Ne5 {[%clk
0:01:26.3]} 26... Bxe5 {[%clk 0:01:49.7]} 27. Rxe5 {[%clk 0:01:18.3]} 27... f6
{[%clk 0:01:18.6]} 28. Re2 {[%clk 0:01:07.7]} 28... Nf5 {[%clk 0:01:06.2]} 29.
Rbe1 {[%clk 0:00:56.2]} 29... Rxe2 {[%clk 0:01:00.3]} 30. Rxe2 {[%clk
0:00:48.7]} 30... Re8 {[%clk 0:01:00.2]} 31. Bxf5 {[%clk 0:00:46.7]} 31... gxf5
{[%clk 0:00:56.5]} 32. Rxe8 {[%clk 0:00:45.1]} 32... Bxe8 {[%clk 0:00:57.4]} 33.
Bxh6 {[%clk 0:00:44.1]} 33... Bxa4 {[%clk 0:00:56.2]} 34. Bf8 {[%clk 0:00:42.2]}
34... Kg8 {[%clk 0:00:42.4]} 35. Qh6 {[%clk 0:00:41]} 35... Qc7 {[%clk
0:00:42.2]} 36. Qxf6 {[%clk 0:00:40.7]} 36... Qf7 {[%clk 0:00:41.6]} 37. Qxf7+
{[%clk 0:00:30.7]} 37... Kxf7 {[%clk 0:00:42.5]} 38. Bc5 {[%clk 0:00:31.3]}
38... Bc2 {[%clk 0:00:40.2]} 39. Kf2 {[%clk 0:00:31]} 39... Be4 {[%clk 0:00:40]}
40. g3 {[%clk 0:00:29.6]} 40... Kg6 {[%clk 0:00:39.8]} 41. Ke3 {[%clk
0:00:25.4]} 41... Bg2 {[%clk 0:00:39.5]} 42. h4 {[%clk 0:00:24]} 42... Be4
{[%clk 0:00:35.8]} 43. Kf4 {[%clk 0:00:24.9]} 43... Kh5 {[%clk 0:00:35.9]} 44.
b3 {[%clk 0:00:20.1]} 44... Bc2 {[%clk 0:00:34.6]} 45. Bb6 {[%clk 0:00:19.9]}
45... Bxb3 {[%clk 0:00:31.9]} 46. Kxf5 {[%clk 0:00:18.3]} 46... Bc2+ {[%clk
0:00:30.3]} 47. Ke5 {[%clk 0:00:10.6]} 47... a4 {[%clk 0:00:30.6]} 48. Bc5
{[%clk 0:00:09.7]} 48... Bb3 {[%clk 0:00:26.7]} 49. Kf4 {[%clk 0:00:06.2]} 49...
Bd1 {[%clk 0:00:26.7]} 50. Be7 {[%clk 0:00:05.5]} 50... Be2 {[%clk 0:00:23.2]}
51. Ke3 {[%clk 0:00:03.7]} 51... Bd1 {[%clk 0:00:23.3]} 52. Kf4 {[%clk 0:00:04]}
52... Be2 {[%clk 0:00:23.3]} 53. Ba3 {[%clk 0:00:04.3]} 53... Bd1 {[%clk
0:00:22.4]} 54. Bb4 {[%clk 0:00:03.9]} 54... b6 {[%clk 0:00:20.4]} 55. Ba3
{[%clk 0:00:03.3]} 55... b5 {[%clk 0:00:20.5]} 56. Ke5 {[%clk 0:00:02.9]} 56...
Bf3 {[%clk 0:00:20.3]} 57. Kd6 {[%clk 0:00:02.1]} 57... Kg4 {[%clk 0:00:20.2]}
58. Kc5 {[%clk 0:00:01.2]} 58... Kxg3 {[%clk 0:00:20.3]} 0-1

[Event "*** Titled Tuesday Blitz"]
[Site "Chess.com"]
[Date "2020.05.05"]
[Round "1"]
[White "Susal_De_Silva"]
[Black "regular_legs"]
[Result "0-1"]
[WhiteElo "2233"]
[BlackElo "2567"]
[TimeControl "180+1"]
[EndTime "10:08:07 PDT"]
[Termination "regular_legs won by resignation"]

1. e4 {[%clk 0:03:00.9]} 1... c6 {[%clk 0:02:58.9]} 2. d4 {[%clk 0:02:59.9]}
2... d5 {[%clk 0:02:59.8]} 3. Nc3 {[%clk 0:02:59.5]} 3... dxe4 {[%clk
0:02:59.5]} 4. Nxe4 {[%clk 0:02:59.3]} 4... Bf5 {[%clk 0:03:00.2]} 5. Ng3 {[%clk
0:02:59.3]} 5... Bg6 {[%clk 0:03:00.4]} 6. h4 {[%clk 0:02:59.5]} 6... h6 {[%clk
0:03:00.7]} 7. Nf3 {[%clk 0:02:57.5]} 7... Nd7 {[%clk 0:03:00.4]} 8. h5 {[%clk
0:02:57.7]} 8... Bh7 {[%clk 0:03:00.3]} 9. Bd3 {[%clk 0:02:57.5]} 9... Bxd3
{[%clk 0:03:00.9]} 10. Qxd3 {[%clk 0:02:58.2]} 10... e6 {[%clk 0:03:01.8]} 11.
Bf4 {[%clk 0:02:56.4]} 11... Qa5+ {[%clk 0:03:01.3]} 12. Bd2 {[%clk 0:02:55]}
12... Bb4 {[%clk 0:03:01.1]} 13. a3 {[%clk 0:02:41.4]} 13... Bxd2+ {[%clk
0:02:58.9]} 14. Qxd2 {[%clk 0:02:42.3]} 14... Qxd2+ {[%clk 0:02:51.6]} 15. Kxd2
{[%clk 0:02:32]} 15... Ngf6 {[%clk 0:02:52.5]} 16. Rae1 {[%clk 0:02:29.1]} 16...
O-O-O {[%clk 0:02:47.9]} 17. Kc1 {[%clk 0:02:27.4]} 17... c5 {[%clk 0:02:44.1]}
18. Rh4 {[%clk 0:02:16.1]} 18... cxd4 {[%clk 0:02:42.8]} 19. Rxd4 {[%clk
0:02:13.6]} 19... Nb8 {[%clk 0:02:10.2]} 20. Rxd8+ {[%clk 0:02:02]} 20... Kxd8
{[%clk 0:02:11.1]} 21. Ne5 {[%clk 0:01:45.9]} 21... Rf8 {[%clk 0:02:05.8]} 22.
Ne4 {[%clk 0:01:09.8]} 22... Ke7 {[%clk 0:01:59.3]} 23. Nxf6 {[%clk 0:01:08.8]}
23... gxf6 {[%clk 0:02:00.2]} 24. Nf3 {[%clk 0:01:08.3]} 24... Nc6 {[%clk
0:01:57.7]} 25. Re4 {[%clk 0:01:05.6]} 25... f5 {[%clk 0:01:56.4]} 26. Rc4
{[%clk 0:01:04]} 26... Rg8 {[%clk 0:01:53.7]} 27. g3 {[%clk 0:01:02.2]} 27...
Rg4 {[%clk 0:01:53.1]} 28. Rc3 {[%clk 0:00:48.8]} 28... e5 {[%clk 0:01:33.6]}
29. Re3 {[%clk 0:00:39]} 29... f6 {[%clk 0:01:19.6]} 30. Nh4 {[%clk 0:00:37.7]}
30... Ke6 {[%clk 0:01:18.9]} 31. Ng6 {[%clk 0:00:24.9]} 31... Ne7 {[%clk
0:01:00.6]} 32. Nxe7 {[%clk 0:00:19.4]} 32... Kxe7 {[%clk 0:01:01.5]} 33. f4
{[%clk 0:00:18.7]} 33... Kd6 {[%clk 0:00:58.4]} 34. Kd2 {[%clk 0:00:18.6]} 34...
exf4 {[%clk 0:00:57.4]} 35. gxf4 {[%clk 0:00:19]} 35... Rxf4 {[%clk 0:00:58.3]}
36. Rd3+ {[%clk 0:00:19.5]} 36... Ke6 {[%clk 0:00:57.4]} 37. Re3+ {[%clk
0:00:19.2]} 37... Re4 {[%clk 0:00:57.3]} 38. Rg3 {[%clk 0:00:19.8]} 38... f4
{[%clk 0:00:51]} 39. Rg6 {[%clk 0:00:19.7]} 39... f3 {[%clk 0:00:50.6]} 40. Rg3
{[%clk 0:00:19.6]} 40... Rf4 {[%clk 0:00:29.7]} 41. Ke1 {[%clk 0:00:19.2]} 41...
f2+ {[%clk 0:00:29]} 42. Kf1 {[%clk 0:00:19.3]} 42... Kf5 {[%clk 0:00:26.7]} 43.
Rg2 {[%clk 0:00:19]} 43... Rf3 {[%clk 0:00:20.7]} 44. Rxf2 {[%clk 0:00:19.1]}
44... Rxf2+ {[%clk 0:00:21]} 45. Kxf2 {[%clk 0:00:20]} 45... Kg5 {[%clk
0:00:21.9]} 46. c4 {[%clk 0:00:20.5]} 46... Kxh5 {[%clk 0:00:22.1]} 47. c5
{[%clk 0:00:20.9]} 47... Kg4 {[%clk 0:00:22.9]} 48. b4 {[%clk 0:00:21.3]} 48...
Kf5 {[%clk 0:00:23.6]} 49. b5 {[%clk 0:00:21.5]} 49... Ke6 {[%clk 0:00:24]} 50.
Kf3 {[%clk 0:00:17.5]} 50... h5 {[%clk 0:00:22]} 51. Kg3 {[%clk 0:00:16.3]}
51... f5 {[%clk 0:00:21.7]} 52. Kh4 {[%clk 0:00:16.8]} 52... f4 {[%clk
0:00:21.9]} 53. a4 {[%clk 0:00:17.2]} 53... Kd5 {[%clk 0:00:21]} 54. c6 {[%clk
0:00:14.3]} 54... bxc6 {[%clk 0:00:20.5]} 55. bxc6 {[%clk 0:00:15.2]} 0-1

[Event "*** Titled Tuesday Blitz"]
[Site "Chess.com"]
[Date "2020.05.05"]
[Round "1"]
[White "bakki78"]
[Black "Keks2017"]
[Result "1/2-1/2"]
[WhiteElo "2723"]
[BlackElo "2388"]
[TimeControl "180+1"]
[EndTime "10:08:09 PDT"]
[Termination "Game drawn - insufficient material"]

1. e4 {[%clk 0:02:59.7]} 1... d6 {[%clk 0:02:59.7]} 2. d4 {[%clk 0:02:59]} 2...
Nf6 {[%clk 0:02:59.5]} 3. Nc3 {[%clk 0:02:58.8]} 3... g6 {[%clk 0:02:59.3]} 4.
f4 {[%clk 0:02:58.5]} 4... Bg7 {[%clk 0:02:59.1]} 5. Bd3 {[%clk 0:02:57.8]} 5...
O-O {[%clk 0:02:56.7]} 6. e5 {[%clk 0:02:57.4]} 6... Nfd7 {[%clk 0:02:54.3]} 7.
h4 {[%clk 0:02:56]} 7... c5 {[%clk 0:02:54.1]} 8. h5 {[%clk 0:02:50.2]} 8...
cxd4 {[%clk 0:02:53]} 9. hxg6 {[%clk 0:02:49.7]} 9... hxg6 {[%clk 0:02:51.3]}
10. Ne4 {[%clk 0:02:45.2]} 10... dxe5 {[%clk 0:02:50.3]} 11. Qg4 {[%clk
0:02:41.4]} 11... exf4 {[%clk 0:02:17.3]} 12. Qh4 {[%clk 0:02:39.7]} 12... Qa5+
{[%clk 0:02:16.8]} 13. Bd2 {[%clk 0:02:36.2]} 13... Qh5 {[%clk 0:02:16.3]} 14.
Qxh5 {[%clk 0:02:35.5]} 14... gxh5 {[%clk 0:02:16]} 15. Bxf4 {[%clk 0:02:35.4]}
15... Nc6 {[%clk 0:02:08.4]} 16. Rxh5 {[%clk 0:02:34]} 16... Nde5 {[%clk
0:01:50.9]} 17. Be2 {[%clk 0:02:24.4]} 17... Ng6 {[%clk 0:01:47.4]} 18. Bd2
{[%clk 0:02:20.4]} 18... Nce5 {[%clk 0:01:21.9]} 19. O-O-O {[%clk 0:02:15.3]}
19... Bg4 {[%clk 0:01:21.1]} 20. Bxg4 {[%clk 0:02:13.9]} 20... Nxg4 {[%clk
0:01:21]} 21. Nf3 {[%clk 0:02:13.8]} 21... Nf6 {[%clk 0:01:16.1]} 22. Nxf6+
{[%clk 0:02:12.5]} 22... Bxf6 {[%clk 0:01:16.1]} 23. Rdh1 {[%clk 0:02:10.1]}
23... Rac8 {[%clk 0:01:13.4]} 24. Kb1 {[%clk 0:02:08.8]} 24... Rfd8 {[%clk
0:01:12.6]} 25. Nh2 {[%clk 0:01:53.9]} 25... b6 {[%clk 0:01:06.8]} 26. Ng4
{[%clk 0:01:52.7]} 26... Rc5 {[%clk 0:01:03.7]} 27. Nxf6+ {[%clk 0:01:45.7]}
27... exf6 {[%clk 0:01:03.2]} 28. R5h3 {[%clk 0:01:45.9]} 28... Rf5 {[%clk
0:00:59.5]} 29. Rg3 {[%clk 0:01:14.2]} 29... Rf2 {[%clk 0:00:46.9]} 30. Bb4
{[%clk 0:01:13.3]} 30... Rd5 {[%clk 0:00:41.6]} 31. a3 {[%clk 0:00:41.5]} 31...
Rg5 {[%clk 0:00:40.1]} 32. Rd3 {[%clk 0:00:41.9]} 32... Rgxg2 {[%clk 0:00:33.5]}
33. Rxd4 {[%clk 0:00:41.7]} 33... Rxc2 {[%clk 0:00:26.2]} 34. Bc3 {[%clk
0:00:41.3]} 34... Rcf2 {[%clk 0:00:24.4]} 35. Rd7 {[%clk 0:00:38.4]} 35... a5
{[%clk 0:00:20.4]} 36. Rd6 {[%clk 0:00:38.5]} 36... Kg7 {[%clk 0:00:19.4]} 37.
Rxb6 {[%clk 0:00:38.5]} 37... a4 {[%clk 0:00:18]} 38. Rb4 {[%clk 0:00:38.3]}
38... Rf4 {[%clk 0:00:17.6]} 39. Ka2 {[%clk 0:00:34.5]} 39... Rxb4 {[%clk
0:00:16.2]} 40. axb4 {[%clk 0:00:34.7]} 40... Nf4 {[%clk 0:00:16.2]} 41. Ka3
{[%clk 0:00:34.7]} 41... Kg6 {[%clk 0:00:16.2]} 42. Kxa4 {[%clk 0:00:34.7]}
42... f5 {[%clk 0:00:16.3]} 43. b5 {[%clk 0:00:34.8]} 43... Nd5 {[%clk
0:00:16.3]} 44. Ka5 {[%clk 0:00:33.5]} 44... f4 {[%clk 0:00:15.4]} 45. b6 {[%clk
0:00:33.1]} 45... Nxb6 {[%clk 0:00:15.4]} 46. Kxb6 {[%clk 0:00:33]} 46... f3
{[%clk 0:00:16.3]} 47. Bd4 {[%clk 0:00:31.7]} 47... Kf5 {[%clk 0:00:16.2]} 48.
Kc5 {[%clk 0:00:31.1]} 48... Ke4 {[%clk 0:00:16.1]} 49. Re1+ {[%clk 0:00:30.9]}
49... Re2 {[%clk 0:00:13.3]} 50. Rxe2+ {[%clk 0:00:24.3]} 50... fxe2 {[%clk
0:00:13.2]} 51. Bc3 {[%clk 0:00:24.4]} 51... f5 {[%clk 0:00:10.6]} 52. b4 {[%clk
0:00:24.9]} 52... f4 {[%clk 0:00:10.7]} 53. b5 {[%clk 0:00:25.4]} 53... f3
{[%clk 0:00:10.7]} 54. Be1 {[%clk 0:00:25.8]} 54... Ke3 {[%clk 0:00:10.8]} 55.
b6 {[%clk 0:00:26.4]} 55... f2 {[%clk 0:00:11]} 56. Bxf2+ {[%clk 0:00:26.8]}
56... Kxf2 {[%clk 0:00:11.2]} 57. b7 {[%clk 0:00:27.4]} 57... e1=Q {[%clk
0:00:11.3]} 58. b8=Q {[%clk 0:00:27.1]} 58... Qe3+ {[%clk 0:00:11.3]} 59. Kd5
{[%clk 0:00:26.8]} 59... Qd3+ {[%clk 0:00:11.2]} 60. Ke6 {[%clk 0:00:26.6]}
60... Qe3+ {[%clk 0:00:11]} 61. Kd7 {[%clk 0:00:26.3]} 61... Qd3+ {[%clk
0:00:10.3]} 62. Qd6 {[%clk 0:00:25.9]} 62... Qxd6+ {[%clk 0:00:09.6]} 63. Kxd6
{[%clk 0:00:25.6]} 1/2-1/2

[Event "*** Titled Tuesday Blitz"]
[Site "Chess.com"]
[Date "2020.05.05"]
[Round "1"]
[White "Goala"]
[Black "Abund"]
[Result "1-0"]
[WhiteElo "2352"]
[BlackElo "2647"]
[TimeControl "180+1"]
[EndTime "10:08:11 PDT"]
[Termination "Goala won by resignation"]

1. d4 {[%clk 0:02:59]} 1... Nf6 {[%clk 0:02:59.6]} 2. c4 {[%clk 0:02:58.3]} 2...
g6 {[%clk 0:02:59.6]} 3. Nc3 {[%clk 0:02:58.7]} 3... d5 {[%clk 0:03:00]} 4. cxd5
{[%clk 0:02:59.5]} 4... Nxd5 {[%clk 0:03:00.5]} 5. e4 {[%clk 0:03:00.2]} 5...
Nxc3 {[%clk 0:03:00.8]} 6. bxc3 {[%clk 0:03:01.1]} 6... Bg7 {[%clk 0:03:01.5]}
7. Be3 {[%clk 0:03:01.7]} 7... c5 {[%clk 0:02:57.7]} 8. Qd2 {[%clk 0:03:01.9]}
8... Qa5 {[%clk 0:02:54]} 9. Rb1 {[%clk 0:03:00.4]} 9... b6 {[%clk 0:02:45.1]}
10. Rc1 {[%clk 0:03:00.5]} 10... O-O {[%clk 0:02:39.8]} 11. Nf3 {[%clk
0:03:00.1]} 11... Ba6 {[%clk 0:02:39.2]} 12. Bxa6 {[%clk 0:02:53.7]} 12... Qxa6
{[%clk 0:02:38]} 13. d5 {[%clk 0:02:30.5]} 13... Qc4 {[%clk 0:02:21.3]} 14. Qc2
{[%clk 0:02:16.3]} 14... f5 {[%clk 0:02:17.6]} 15. Nd2 {[%clk 0:02:10.7]} 15...
Qa6 {[%clk 0:02:12]} 16. Bg5 {[%clk 0:01:26.7]} 16... Bf6 {[%clk 0:01:42.9]} 17.
Bxf6 {[%clk 0:01:17.1]} 17... exf6 {[%clk 0:01:38.9]} 18. c4 {[%clk 0:01:03.9]}
18... Nd7 {[%clk 0:01:36.3]} 19. O-O {[%clk 0:01:01.5]} 19... fxe4 {[%clk
0:01:17.3]} 20. Nxe4 {[%clk 0:00:59.4]} 20... Rae8 {[%clk 0:01:15.8]} 21. Rfe1
{[%clk 0:00:59.2]} 21... Qa5 {[%clk 0:00:59.6]} 22. Re3 {[%clk 0:00:53.6]} 22...
f5 {[%clk 0:00:56.7]} 23. Ng5 {[%clk 0:00:44.1]} 23... Rxe3 {[%clk 0:00:55.4]}
24. fxe3 {[%clk 0:00:45]} 24... Re8 {[%clk 0:00:52.5]} 25. e4 {[%clk 0:00:40.4]}
25... Qa3 {[%clk 0:00:35.4]} 26. Re1 {[%clk 0:00:29.7]} 26... Re5 {[%clk
0:00:24]} 27. Nf3 {[%clk 0:00:14.3]} 27... Rxe4 {[%clk 0:00:19.9]} 28. Rxe4
{[%clk 0:00:14.8]} 28... fxe4 {[%clk 0:00:19.7]} 29. Qxe4 {[%clk 0:00:15.7]}
29... Qc1+ {[%clk 0:00:19.3]} 30. Kf2 {[%clk 0:00:16.2]} 30... Qb2+ {[%clk
0:00:19.1]} 31. Kg3 {[%clk 0:00:15.9]} 31... Qf6 {[%clk 0:00:15.5]} 32. a4
{[%clk 0:00:15.5]} 32... Qd6+ {[%clk 0:00:14.6]} 33. Kf2 {[%clk 0:00:15.1]}
33... Nf6 {[%clk 0:00:14.2]} 34. Qh4 {[%clk 0:00:11.5]} 34... Kg7 {[%clk
0:00:13.6]} 35. h3 {[%clk 0:00:11.6]} 35... h6 {[%clk 0:00:13.6]} 36. Kg1 {[%clk
0:00:11.9]} 36... g5 {[%clk 0:00:12]} 37. Qe1 {[%clk 0:00:12.4]} 37... Nd7
{[%clk 0:00:10.1]} 38. Qe4 {[%clk 0:00:11.8]} 38... Nf6 {[%clk 0:00:08.2]} 39.
Qf5 {[%clk 0:00:11.5]} 39... Qd7 {[%clk 0:00:08.7]} 40. Qe5 {[%clk 0:00:11]}
40... Qe8 {[%clk 0:00:07.9]} 41. Qc7+ {[%clk 0:00:10.5]} 41... Qd7 {[%clk
0:00:08.4]} 42. Qe5 {[%clk 0:00:09.7]} 42... Qf7 {[%clk 0:00:08.2]} 43. d6
{[%clk 0:00:09.1]} 43... Kg6 {[%clk 0:00:08.5]} 44. h4 {[%clk 0:00:07.7]} 44...
Nd7 {[%clk 0:00:08.7]} 45. Qe4+ {[%clk 0:00:04.4]} 45... Kg7 {[%clk 0:00:09.1]}
46. Ne5 {[%clk 0:00:03.7]} 46... Nxe5 {[%clk 0:00:07.7]} 47. Qxe5+ {[%clk
0:00:04.6]} 47... Qf6 {[%clk 0:00:08.4]} 48. Qd5 {[%clk 0:00:04.9]} 48... Qd4+
{[%clk 0:00:08]} 49. Qxd4+ {[%clk 0:00:04.5]} 49... cxd4 {[%clk 0:00:08.4]} 50.
d7 {[%clk 0:00:04.5]} 50... d3 {[%clk 0:00:08.1]} 51. d8=Q {[%clk 0:00:05.4]}
51... d2 {[%clk 0:00:08.5]} 52. Qxd2 {[%clk 0:00:06]} 52... Kg6 {[%clk
0:00:08.7]} 53. Qd6+ {[%clk 0:00:05.8]} 53... Kf5 {[%clk 0:00:09.1]} 54. hxg5
{[%clk 0:00:06.5]} 54... hxg5 {[%clk 0:00:09.2]} 55. Qd7+ {[%clk 0:00:07.4]}
55... Kf4 {[%clk 0:00:09.4]} 56. Qxa7 {[%clk 0:00:08.3]} 56... Ke4 {[%clk
0:00:09.8]} 57. Qxb6 {[%clk 0:00:08.5]} 57... Kd3 {[%clk 0:00:10.1]} 58. c5
{[%clk 0:00:08]} 1-0

[Event "*** Titled Tuesday Blitz"]
[Site "Chess.com"]
[Date "2020.05.05"]
[Round "1"]
[White "kreonx"]
[Black "TST2014"]
[Result "0-1"]
[WhiteElo "2220"]
[BlackElo "2564"]
[TimeControl "180+1"]
[EndTime "10:08:11 PDT"]
[Termination "TST2014 won on time"]

1. e4 {[%clk 0:03:00.9]} 1... c5 {[%clk 0:02:59.6]} 2. Nc3 {[%clk 0:03:01.3]}
2... Nc6 {[%clk 0:02:58.4]} 3. g3 {[%clk 0:03:01.8]} 3... g6 {[%clk 0:02:58.1]}
4. Bg2 {[%clk 0:03:02.3]} 4... Bg7 {[%clk 0:02:58.5]} 5. d3 {[%clk 0:03:02.9]}
5... Rb8 {[%clk 0:02:56.5]} 6. Be3 {[%clk 0:03:03.3]} 6... d6 {[%clk 0:02:55.9]}
7. Qd2 {[%clk 0:03:01.7]} 7... b5 {[%clk 0:02:55.5]} 8. f4 {[%clk 0:03:02.2]}
8... b4 {[%clk 0:02:53.9]} 9. Nd1 {[%clk 0:03:02.6]} 9... h5 {[%clk 0:02:51.3]}
10. h3 {[%clk 0:03:01.9]} 10... Qb6 {[%clk 0:02:42.2]} 11. Nf3 {[%clk
0:03:00.8]} 11... Nd4 {[%clk 0:02:41.6]} 12. O-O {[%clk 0:02:58]} 12... a5
{[%clk 0:02:38.8]} 13. a3 {[%clk 0:02:36.2]} 13... b3 {[%clk 0:02:33.6]} 14. c3
{[%clk 0:02:15]} 14... Nc2 {[%clk 0:02:32.7]} 15. Rb1 {[%clk 0:02:11.7]} 15...
Nf6 {[%clk 0:02:19.8]} 16. Bf2 {[%clk 0:02:09.2]} 16... Ba6 {[%clk 0:02:14]} 17.
Ne3 {[%clk 0:02:07.5]} 17... Qb5 {[%clk 0:02:01.2]} 18. c4 {[%clk 0:01:57.7]}
18... Qa4 {[%clk 0:01:56.8]} 19. Rfc1 {[%clk 0:01:52.6]} 19... Nxe3 {[%clk
0:01:53.2]} 20. Bxe3 {[%clk 0:01:53.5]} 20... O-O {[%clk 0:01:45.7]} 21. Qf2
{[%clk 0:01:47.2]} 21... Qd7 {[%clk 0:01:33.8]} 22. Bd2 {[%clk 0:01:43.9]} 22...
a4 {[%clk 0:01:32.9]} 23. Bc3 {[%clk 0:01:44.5]} 23... Bb7 {[%clk 0:01:28.9]}
24. Rf1 {[%clk 0:01:42.6]} 24... Bc6 {[%clk 0:01:28.4]} 25. Rbe1 {[%clk
0:01:41.2]} 25... Qb7 {[%clk 0:01:28.4]} 26. Kh2 {[%clk 0:01:32]} 26... e6
{[%clk 0:01:24.2]} 27. f5 {[%clk 0:01:04.4]} 27... e5 {[%clk 0:00:59.4]} 28. Bd2
{[%clk 0:00:52.8]} 28... gxf5 {[%clk 0:00:53.3]} 29. Nh4 {[%clk 0:00:40]} 29...
fxe4 {[%clk 0:00:49.2]} 30. Nf5 {[%clk 0:00:39.8]} 30... e3 {[%clk 0:00:35.9]}
31. Qxe3 {[%clk 0:00:29]} 31... Bxg2 {[%clk 0:00:33.5]} 32. Qg5 {[%clk
0:00:12.8]} 32... Ng4+ {[%clk 0:00:33.5]} 33. hxg4 {[%clk 0:00:11.5]} 33... f6
{[%clk 0:00:33.3]} 34. Qxg7+ {[%clk 0:00:05.9]} 34... Qxg7 {[%clk 0:00:32.5]}
35. Nxg7 {[%clk 0:00:06.5]} 35... Bxf1 {[%clk 0:00:33.1]} 36. Ne6 {[%clk
0:00:07.1]} 36... Rfe8 {[%clk 0:00:30.1]} 37. Rxf1 {[%clk 0:00:06.7]} 37... Rxe6
{[%clk 0:00:29.9]} 38. gxh5 {[%clk 0:00:07.6]} 38... Kf7 {[%clk 0:00:28.8]} 39.
g4 {[%clk 0:00:08]} 39... Rg8 {[%clk 0:00:28.2]} 40. g5 {[%clk 0:00:08.3]} 40...
Rh8 {[%clk 0:00:25.1]} 41. h6 {[%clk 0:00:07.3]} 41... Kg6 {[%clk 0:00:24.7]}
42. gxf6 {[%clk 0:00:06.2]} 42... Rxf6 {[%clk 0:00:25.6]} 43. Kg2 {[%clk
0:00:06]} 43... Rxf1 {[%clk 0:00:25]} 44. Kxf1 {[%clk 0:00:06.9]} 44... e4
{[%clk 0:00:24]} 45. dxe4 {[%clk 0:00:05.7]} 45... Re8 {[%clk 0:00:24.2]} 46.
Ke2 {[%clk 0:00:03.3]} 46... Rxe4+ {[%clk 0:00:24.4]} 47. Kd3 {[%clk 0:00:04.2]}
47... Rd4+ {[%clk 0:00:24.4]} 48. Kc3 {[%clk 0:00:04.1]} 48... Kf5 {[%clk
0:00:22.4]} 49. Be3 {[%clk 0:00:01.8]} 49... Rh4 {[%clk 0:00:21.7]} 0-1